[Event "EYCC Girls-U10 2019"]
[Site "Bratislava"]
[Date "2019.08.09"]
[Round "8.10"]
[White "Stefan, Iulia-Cristiana"]
[Black "Zavivaeva, Evelina"]
[Result "0-1"]
[ECO "C65"]
[WhiteElo "1389"]
[BlackElo "1302"]
[Annotator "NA"]
[PlyCount "96"]
[EventDate "2019.08.02"]
[EventType "swiss"]
[EventCountry "SVK"]
[SourceTitle "playchess.com"]
[Source "ChessBase"]
[SourceQuality "1"]
[TimeControl "40/5400+30:1800+30"]

1. e4 {[%emt 0:00:00]} e5 {[%emt 0:00:00]} 2. Nf3 {[%emt 0:00:00]} Nc6 {[%emt 0:00:00]} 3. Bb5 {[%emt 0:00:00]} Nf6 {[%emt 0:00:00]} 4. d3 {[%emt 0:00:00]} Bc5 {[%emt 0:00:51]} 5. c3 {[%emt 0:00:00]} d6 {[%emt 0:00:44]} 6. O-O {[%emt 0:00:17]} O-O {[%emt 0:00:16]} 7. Be3 {[%emt 0:00:12]} Bb6 {[%emt 0:00:41]} 8. Bxb6 {[%emt 0:00:42]} axb6 {[%emt 0:00:29]} 9. Ba4 {[%emt 0:00:59]} Bg4 {[%emt 0:00:37]} 10. Bb3 {[%emt 0:00:21]} Ne7 {[%emt 0:00:26]} 11. Re1 {[%emt 0:00:49]} Ng6 {[%emt 0:00:39]} 12. h3 {[%emt 0:02:30]} Bh5 {[%emt 0:00:39]} 13. Nbd2 {[%emt 0:01:21]} Nd7 {[%emt 0:08:26]} 14. Nf1 {[%emt 0:12:53]} Qf6 {[%emt 0:03:22]} 15. N1h2 {[%emt 0:03:10]} Nf4 {[%emt 0:01:47]} 16. Kh1 {[%emt 0:05:36]} Nc5 {[%emt 0:05:00]} 17. Bc2 {[%emt 0:01:52]} Nce6 {[%emt 0:00:59]} 18. d4 {[%emt 0:03:04]} Ng5 {[%emt 0:04:09]} 19. Ng4 {[%emt 0:11:38]} Bxg4 {[%emt 0:02:10]} 20. hxg4 {[%emt 0:00:26]} Qh6+ {[%emt 0:19:26]} 21. Kg1 {[%emt 0:01:06]} Nxg2 {[%emt 0:06:40]} 22. Re3 {[%emt 0:17:34]} Nxe3 {[%emt 0:00:50]} 23. fxe3 {[%emt 0:00:18]} Qh3 {[%emt 0:04:25]} 24. Nxg5 {[%emt 0:01:54]} Qxe3+ {[%emt 0:00:27]} 25. Kg2 {[%emt 0:00:50]} Qxg5 {[%emt 0:00:16]} 26. Qe2 {[%emt 0:00:54]} Rfe8 {[%emt 0:00:36]} 27. Rf1 {[%emt 0:01:12]} h5 {[%emt 0:02:11]} 28. Bb3 {[%emt 0:04:56]} Re7 {[%emt 0:00:50]} 29. Kg3 {[%emt 0:03:52]} Qxg4+ {[%emt 0:00:40]} 30. Qxg4 {[%emt 0:00:27]} hxg4 {[%emt 0:00:07]} 31. Kxg4 {[%emt 0:00:05]} exd4 {[%emt 0:00:13]} 32. cxd4 {[%emt 0:00:06]} Rxe4+ {[%emt 0:00:08]} 33. Kg5 {[%emt 0:00:33]} Ra5+ {[%emt 0:01:12]} 34. d5 {[%emt 0:00:29]} Re5+ {[%emt 0:00:34]} 35. Kg4 {[%emt 0:00:40]} g6 {[%emt 0:01:27]} 36. Rf2 {[%emt 0:01:04]} Kg7 {[%emt 0:00:21]} 37. Rc2 {[%emt 0:01:07]} Rc5 {[%emt 0:00:16]} 38. Rf2 {[%emt 0:00:13]} Re4+ {[%emt 0:02:08]} 39. Kg3 {[%emt 0:00:21]} f5 {[%emt 0:02:17]} 40. Bc2 {[%emt 0:00:00]} Rg4+ {[%emt 0:00:00]} 41. Kf3 {[%emt 0:01:21]} Rxd5 {[%emt 0:00:48]} 42. Re2 {[%emt 0:00:34]} Re5 {[%emt 0:00:16]} 43. Rd2 {[%emt 0:00:25]} d5 {[%emt 0:00:27]} 44. Bd1 {[%emt 0:00:30]} c6 {[%emt 0:01:46]} 45. Kf2 {[%emt 0:00:26]} Rh4 {[%emt 0:00:37]} 46. Kg3 {[%emt 0:00:35]} g5 {[%emt 0:00:12]} 47. Bc2 {[%emt 0:00:17]} f4+ {[%emt 0:00:56]} 48. Kg2 {[%emt 0:00:19]} Re3 {[%emt 0:00:57]} 0-1

[Event "EYCC Girls-U10 2019"]
[Site "Bratislava"]
[Date "2019.08.09"]
[Round "8.12"]
[White "Pavesi, Bianca"]
[Black "Salmina, Veronika"]
[Result "0-1"]
[ECO "E61"]
[WhiteElo "1537"]
[BlackElo "1335"]
[Annotator "NA"]
[PlyCount "58"]
[EventDate "2019.08.02"]
[EventType "swiss"]
[EventCountry "SVK"]
[SourceTitle "playchess.com"]
[Source "ChessBase"]
[SourceQuality "1"]
[TimeControl "40/5400+30:1800+30"]

1. d4 {[%emt 0:00:00]} Nf6 {[%emt 0:00:00]} 2. Nf3 {[%emt 0:01:37]} g6 {[%emt 0:00:00]} 3. c4 {[%emt 0:01:11]} Bg7 {[%emt 0:00:00]} 4. Nc3 {[%emt 0:01:53]} d6 {[%emt 0:02:04]} 5. Bg5 {[%emt 0:05:47]} c5 {[%emt 0:01:44]} 6. e3 {[%emt 0:03:58]} O-O {[%emt 0:02:28]} 7. Be2 {[%emt 0:04:08]} Bf5 {[%emt 0:05:26]} 8. O-O {[%emt 0:04:45]} Nbd7 {[%emt 0:07:41]} 9. Nd2 {[%emt 0:14:03]} h6 {[%emt 0:03:59]} 10. Bxf6 {[%emt 0:07:06]} Nxf6 {[%emt 0:02:44]} 11. Nf3 {[%emt 0:08:10]} Ne4 {[%emt 0:14:03]} 12. Bd3 {[%emt 0:08:09]} Nxc3 {[%emt 0:02:07]} 13. bxc3 {[%emt 0:02:01]} Bxd3 {[%emt 0:02:46]} 14. Qxd3 {[%emt 0:01:49]} Rc8 {[%emt 0:01:03]} 15. Rfd1 {[%emt 0:07:15]} Qc7 {[%emt 0:03:57]} 16. Rac1 {[%emt 0:03:28]} cxd4 {[%emt 0:04:28]} 17. cxd4 {[%emt 0:02:38]} d5 {[%emt 0:02:07]} 18. c5 {[%emt 0:03:12]} b6 {[%emt 0:01:52]} 19. c6 {[%emt 0:05:47]} Qd6 {[%emt 0:02:46]} 20. Qb5 {[%emt 0:02:29]} Rc7 {[%emt 0:02:15]} 21. Rc2 {[%emt 0:00:59]} Rfc8 {[%emt 0:02:06]} 22. Rdc1 {[%emt 0:00:32]} Qa3 {[%emt 0:02:03]} 23. g3 {[%emt 0:03:53]} e6 {[%emt 0:05:28]} 24. Kg2 {[%emt 0:01:15]} Rb8 25. Qe2 {[%emt 0:02:06]} b5 {[%emt 0:05:28]} 26. Rc3 {[%emt 0:01:12]} Qd6 {[%emt 0:02:52]} 27. Nd2 {[%emt 0:03:07]} Rb6 {[%emt 0:01:05]} 28. Rb1 {[%emt 0:00:54]} Rcxc6 {[%emt 0:01:03]} 29. Rcb3 {[%emt 0:00:31]} a6 {[%emt 0:00:31]} 0-1

[Event "EYCC Girls-U10 2019"]
[Site "Bratislava"]
[Date "2019.08.09"]
[Round "8.13"]
[White "Haasova, Timea"]
[Black "Bagas, Ana"]
[Result "1-0"]
[ECO "C01"]
[WhiteElo "1287"]
[BlackElo "1442"]
[Annotator "NA"]
[PlyCount "87"]
[EventDate "2019.08.02"]
[EventType "swiss"]
[EventCountry "SVK"]
[SourceTitle "playchess.com"]
[Source "ChessBase"]
[SourceQuality "1"]
[TimeControl "40/5400+30:1800+30"]

1. e4 {[%emt 0:00:00]} e6 {[%emt 0:00:00]} 2. d4 {[%emt 0:00:00]} d5 {[%emt 0:00:00]} 3. exd5 {[%emt 0:00:00]} exd5 {[%emt 0:00:00]} 4. Bd3 {[%emt 0:00:00]} Bd6 {[%emt 0:00:00]} 5. Ne2 {[%emt 0:00:10]} Nc6 {[%emt 0:00:17]} 6. c3 {[%emt 0:00:12]} Nge7 {[%emt 0:00:20]} 7. O-O {[%emt 0:00:53]} Bf5 {[%emt 0:00:38]} 8. Bf4 {[%emt 0:02:31]} Qd7 {[%emt 0:01:33]} 9. Bxd6 {[%emt 0:03:18]} Qxd6 {[%emt 0:00:15]} 10. Ng3 {[%emt 0:00:42]} Bg6 {[%emt 0:01:41]} 11. a4 {[%emt 0:01:36]} O-O-O {[%emt 0:02:52]} 12. b4 {[%emt 0:01:10]} h5 {[%emt 0:03:37]} 13. h3 {[%emt 0:15:05]} h4 {[%emt 0:08:09]} 14. Ne2 {[%emt 0:06:43]} Bxd3 {[%emt 0:05:58]} 15. Qxd3 {[%emt 0:00:22]} g5 {[%emt 0:01:54]} 16. Qf3 {[%emt 0:04:23]} f5 {[%emt 0:01:12]} 17. a5 {[%emt 0:03:16]} Rdg8 {[%emt 0:09:16]} 18. b5 {[%emt 0:08:00]} Nd8 {[%emt 0:08:59]} 19. a6 {[%emt 0:07:33]} b6 {[%emt 0:01:02]} 20. Nd2 {[%emt 0:02:33]} g4 {[%emt 0:09:28]} 21. hxg4 {[%emt 0:02:04]} Rxg4 {[%emt 0:03:28]} 22. Kh1 {[%emt 0:08:31]} Nf7 23. Ra2 {[%emt 0:09:45]} Ng5 {[%emt 0:13:06]} 24. Qd3 {[%emt 0:01:24]} Rg8 {[%emt 0:04:09]} 25. Rg1 {[%emt 0:02:26]} Ne4 {[%emt 0:04:26]} 26. Nxe4 {[%emt 0:02:33]} fxe4 {[%emt 0:01:43]} 27. Qh3 {[%emt 0:01:53]} Nf5 {[%emt 0:04:57]} 28. Raa1 {[%emt 0:03:55]} Kb8 {[%emt 0:03:26]} 29. Qh2 {[%emt 0:01:51]} Qe7 {[%emt 0:01:40]} 30. Nf4 {[%emt 0:01:36]} Qd6 {[%emt 0:01:30]} 31. Nh5 {[%emt 0:00:58]} Qe7 {[%emt 0:00:41]} 32. Qe5 {[%emt 0:01:23]} Qxe5 {[%emt 0:02:06]} 33. dxe5 {[%emt 0:00:13]} R4g6 {[%emt 0:01:24]} 34. Nf4 {[%emt 0:01:10]} R6g7 {[%emt 0:01:15]} 35. Nxd5 {[%emt 0:00:34]} Rd8 {[%emt 0:01:20]} 36. Nb4 {[%emt 0:01:10]} Ne7 {[%emt 0:00:28]} 37. Rad1 {[%emt 0:01:08]} Rxd1 {[%emt 0:01:30]} 38. Rxd1 {[%emt 0:00:07]} Kc8 {[%emt 0:00:11]} 39. Rd4 {[%emt 0:01:29]} Rg6 {[%emt 0:01:19]} 40. Rxe4 {[%emt 0:00:00]} Re6 {[%emt 0:00:00]} 41. f4 {[%emt 0:02:44]} Nf5 {[%emt 0:01:41]} 42. Kh2 {[%emt 0:01:38]} Ng3 {[%emt 0:00:48]} 43. Re1 {[%emt 0:00:54]} Kd7 {[%emt 0:01:44]} 44. Nc6 1-0

[Event "EYCC Girls-U10 2019"]
[Site "Bratislava"]
[Date "2019.08.09"]
[Round "8.14"]
[White "Zadrapova, Amalie"]
[Black "Bat, Anu"]
[Result "1-0"]
[ECO "B40"]
[WhiteElo "1248"]
[BlackElo "1457"]
[Annotator "NA"]
[PlyCount "119"]
[EventDate "2019.08.02"]
[EventType "swiss"]
[EventCountry "SVK"]
[SourceTitle "playchess.com"]
[Source "ChessBase"]
[SourceQuality "1"]
[TimeControl "40/5400+30:1800+30"]

1. e4 {[%emt 0:00:00]} c5 {[%emt 0:00:00]} 2. Nf3 {[%emt 0:00:00]} e6 {[%emt 0:00:00]} 3. d4 {[%emt 0:00:12]} cxd4 {[%emt 0:00:03]} 4. Nxd4 {[%emt 0:00:13]} Nf6 {[%emt 0:00:10]} 5. Nc3 {[%emt 0:00:18]} Nc6 {[%emt 0:00:29]} 6. Be3 {[%emt 0:00:42]} Bb4 {[%emt 0:00:14]} 7. Bd3 {[%emt 0:02:30]} d5 {[%emt 0:01:04]} 8. f3 {[%emt 0:11:39]} O-O {[%emt 0:17:28]} 9. Nxc6 {[%emt 0:05:05]} bxc6 {[%emt 0:00:12]} 10. Bd2 {[%emt 0:01:58]} Bxc3 {[%emt 0:05:23]} 11. Bxc3 {[%emt 0:01:10]} d4 {[%emt 0:00:42]} 12. Bb4 {[%emt 0:02:59]} Re8 {[%emt 0:00:53]} 13. Qd2 {[%emt 0:03:08]} a5 {[%emt 0:01:38]} 14. Bc5 {[%emt 0:01:13]} e5 {[%emt 0:01:56]} 15. O-O-O {[%emt 0:03:10]} Be6 {[%emt 0:01:05]} 16. a4 {[%emt 0:06:18]} Nd7 {[%emt 0:01:19]} 17. Ba3 {[%emt 0:00:08]} c5 {[%emt 0:00:40]} 18. Qe2 {[%emt 0:01:28]} Qc7 {[%emt 0:02:37]} 19. Bb5 {[%emt 0:10:07]} Reb8 {[%emt 0:03:23]} 20. b3 {[%emt 0:04:54]} Nb6 {[%emt 0:01:40]} 21. Kb2 {[%emt 0:08:27]} c4 {[%emt 0:01:05]} 22. Rc1 {[%emt 0:01:39]} c3+ {[%emt 0:02:15]} 23. Kb1 {[%emt 0:00:32]} Nc8 {[%emt 0:00:58]} 24. Ka2 {[%emt 0:02:27]} Na7 {[%emt 0:00:48]} 25. Bd3 {[%emt 0:01:02]} Qd7 {[%emt 0:01:29]} 26. Ka1 {[%emt 0:03:15]} f6 {[%emt 0:02:50]} 27. g4 {[%emt 0:05:26]} Kh8 {[%emt 0:00:38]} 28. h4 {[%emt 0:00:52]} Qe8 {[%emt 0:00:25]} 29. g5 {[%emt 0:02:26]} g6 {[%emt 0:02:32]} 30. gxf6 {[%emt 0:01:42]} Qf7 {[%emt 0:00:42]} 31. Bd6 {[%emt 0:01:52]} Rb6 {[%emt 0:02:40]} 32. Bxe5 {[%emt 0:01:21]} Nc6 {[%emt 0:00:41]} 33. f4 {[%emt 0:00:34]} Nxe5 {[%emt 0:01:49]} 34. fxe5 {[%emt 0:00:23]} Rab8 {[%emt 0:00:59]} 35. Bb5 {[%emt 0:01:33]} Qf8 {[%emt 0:03:58]} 36. Ka2 {[%emt 0:02:07]} Rxb5 {[%emt 0:02:18]} 37. axb5 {[%emt 0:08:14]} a4 {[%emt 0:00:33]} 38. Ra1 {[%emt 0:01:00]} axb3+ {[%emt 0:00:32]} 39. cxb3 {[%emt 0:04:32]} Ra8+ {[%emt 0:01:23]} 40. Kb1 {[%emt 0:00:00]} Rxa1+ {[%emt 0:00:00]} 41. Kxa1 {[%emt 0:02:02]} Bxb3 {[%emt 0:01:44]} 42. Kb1 {[%emt 0:15:54]} Qb4 {[%emt 0:01:21]} 43. Qf2 {[%emt 0:02:43]} Ba4+ {[%emt 0:01:15]} 44. Ka1 {[%emt 0:02:43]} Bb3 {[%emt 0:02:50]} 45. Rc1 {[%emt 0:04:54]} Qa3+ {[%emt 0:03:49]} 46. Kb1 {[%emt 0:00:11]} d3 {[%emt 0:01:54]} 47. Rxc3 {[%emt 0:01:49]} Bc2+ {[%emt 0:05:41]} 48. Rxc2 {[%emt 0:00:07]} dxc2+ {[%emt 0:00:22]} 49. Qxc2 {[%emt 0:00:07]} Qb4+ {[%emt 0:00:44]} 50. Kc1 {[%emt 0:01:18]} Qf8 {[%emt 0:01:15]} 51. b6 {[%emt 0:02:01]} Qa3+ {[%emt 0:01:27]} 52. Kd2 {[%emt 0:00:23]} Qa5+ {[%emt 0:00:53]} 53. Ke2 {[%emt 0:01:15]} Qb5+ {[%emt 0:00:41]} 54. Kf3 {[%emt 0:01:14]} Qf1+ {[%emt 0:00:44]} 55. Ke3 {[%emt 0:00:19]} Qh3+ {[%emt 0:00:50]} 56. Kd4 {[%emt 0:00:46]} Qd7+ {[%emt 0:00:30]} 57. Kc3 {[%emt 0:00:57]} Qc6+ {[%emt 0:01:52]} 58. Kd2 {[%emt 0:00:17]} Qd7+ {[%emt 0:00:46]} 59. Kc1 {[%emt 0:00:06]} h5 {[%emt 0:00:43]} 60. Qc7 {[%emt 0:00:50]} 1-0

[Event "EYCC Girls-U10 2019"]
[Site "Bratislava"]
[Date "2019.08.09"]
[Round "8.15"]
[White "Bursali, Ela"]
[Black "Liashkevich, Lizaveta"]
[Result "1/2-1/2"]
[ECO "B54"]
[WhiteElo "1197"]
[BlackElo "1406"]
[Annotator "NA"]
[PlyCount "115"]
[EventDate "2019.08.02"]
[EventType "swiss"]
[EventCountry "SVK"]
[SourceTitle "playchess.com"]
[Source "ChessBase"]
[SourceQuality "1"]
[TimeControl "40/5400+30:1800+30"]

1. e4 {[%emt 0:00:00]} c5 {[%emt 0:00:00]} 2. Nf3 {[%emt 0:00:00]} d6 {[%emt 0:00:00]} 3. d4 {[%emt 0:00:05]} cxd4 {[%emt 0:00:00]} 4. Nxd4 {[%emt 0:00:06]} Nf6 {[%emt 0:00:12]} 5. f3 {[%emt 0:00:04]} a6 {[%emt 0:00:11]} 6. c4 {[%emt 0:01:31]} e6 {[%emt 0:00:43]} 7. Nc3 {[%emt 0:01:59]} b6 {[%emt 0:01:03]} 8. Be3 {[%emt 0:00:09]} Bb7 {[%emt 0:01:04]} 9. Be2 {[%emt 0:01:10]} Be7 {[%emt 0:01:45]} 10. O-O {[%emt 0:00:30]} Nbd7 {[%emt 0:01:03]} 11. Qd2 {[%emt 0:00:31]} O-O {[%emt 0:01:31]} 12. a3 {[%emt 0:01:09]} Rc8 {[%emt 0:01:56]} 13. Rac1 {[%emt 0:01:32]} Nc5 {[%emt 0:03:44]} 14. b4 {[%emt 0:00:26]} Ncd7 {[%emt 0:12:06]} 15. Rc2 {[%emt 0:00:48]} Ne5 {[%emt 0:01:39]} 16. Na4 {[%emt 0:01:33]} Rb8 {[%emt 0:03:46]} 17. Rfc1 {[%emt 0:04:53]} Ng6 {[%emt 0:10:07]} 18. b5 {[%emt 0:05:24]} axb5 {[%emt 0:07:26]} 19. cxb5 {[%emt 0:00:09]} Nd7 {[%emt 0:03:28]} 20. Nc3 {[%emt 0:15:34]} Nc5 {[%emt 0:01:22]} 21. Rb1 {[%emt 0:02:14]} Ra8 {[%emt 0:03:30]} 22. Ra2 {[%emt 0:01:20]} Qc7 {[%emt 0:03:11]} 23. Nb3 {[%emt 0:02:11]} Rfd8 {[%emt 0:06:01]} 24. Kh1 {[%emt 0:04:49]} Rac8 {[%emt 0:04:07]} 25. Nd4 {[%emt 0:06:54]} Bf6 {[%emt 0:04:34]} 26. a4 {[%emt 0:03:47]} Ra8 {[%emt 0:04:56]} 27. Rb4 {[%emt 0:01:19]} Ne7 {[%emt 0:02:16]} 28. Bg5 {[%emt 0:04:47]} Bxg5 {[%emt 0:00:21]} 29. Qxg5 {[%emt 0:00:12]} h6 {[%emt 0:01:35]} 30. Qe3 {[%emt 0:01:43]} Rdc8 {[%emt 0:03:24]} 31. Rc2 {[%emt 0:02:08]} Rd8 {[%emt 0:00:13]} 32. Ra2 {[%emt 0:05:36]} Rdc8 {[%emt 0:00:19]} 33. Rc2 {[%emt 0:01:42]} e5 {[%emt 0:01:11]} 34. Nb3 {[%emt 0:04:59]} Nxb3 {[%emt 0:01:08]} 35. Rxb3 {[%emt 0:00:14]} Rxa4 {[%emt 0:01:40]} 36. Nxa4 {[%emt 0:00:40]} Qxc2 {[%emt 0:00:08]} 37. Nxb6 {[%emt 0:00:35]} Qc1+ {[%emt 0:00:48]} 38. Qg1 {[%emt 0:00:42]} Rc2 {[%emt 0:01:32]} 39. Bd3 {[%emt 0:00:34]} Rc3 {[%emt 0:01:10]} 40. Rxc3 {[%emt 0:00:00]} Qxc3 {[%emt 0:00:00]} 41. Be2 {[%emt 0:02:42]} d5 {[%emt 0:02:44]} 42. exd5 {[%emt 0:00:52]} Nxd5 {[%emt 0:01:03]} 43. Nxd5 {[%emt 0:00:10]} Bxd5 {[%emt 0:00:07]} 44. Qd1 {[%emt 0:01:31]} Bc4 {[%emt 0:04:10]} 45. Bxc4 {[%emt 0:00:03]} Qxc4 {[%emt 0:00:12]} 46. Qb1 {[%emt 0:00:04]} Qc7 {[%emt 0:00:39]} 47. b6 {[%emt 0:00:11]} Qb7 {[%emt 0:01:14]} 48. Kg1 {[%emt 0:00:24]} f6 {[%emt 0:00:34]} 49. Qb3+ {[%emt 0:00:15]} Kh8 {[%emt 0:01:02]} 50. Kf2 {[%emt 0:01:21]} h5 {[%emt 0:00:53]} 51. Qb5 {[%emt 0:01:01]} g6 {[%emt 0:01:48]} 52. Qb4 {[%emt 0:00:07]} Kg7 {[%emt 0:01:25]} 53. Qc5 {[%emt 0:00:29]} Kh6 {[%emt 0:00:21]} 54. Qf8+ {[%emt 0:00:43]} Kg5 {[%emt 0:00:25]} 55. h4+ {[%emt 0:00:31]} Kf5 {[%emt 0:00:29]} 56. Qb4 {[%emt 0:00:28]} Ke6 {[%emt 0:00:53]} 57. Qc4+ {[%emt 0:02:12]} Kd6 {[%emt 0:00:21]} 58. Qb5 {[%emt 0:02:29]} 1/2-1/2

[Event "EYCC Girls-U10 2019"]
[Site "Bratislava"]
[Date "2019.08.09"]
[Round "8.16"]
[White "Abbasova, Zarifa"]
[Black "Sosovickova, Martina"]
[Result "1/2-1/2"]
[ECO "B23"]
[WhiteElo "1353"]
[BlackElo "1200"]
[Annotator "NA"]
[PlyCount "62"]
[EventDate "2019.08.02"]
[EventType "swiss"]
[EventCountry "SVK"]
[SourceTitle "playchess.com"]
[Source "ChessBase"]
[SourceQuality "1"]
[TimeControl "40/5400+30:1800+30"]

1. e4 {[%emt 0:00:00]} c5 {[%emt 0:00:00]} 2. Nc3 {[%emt 0:00:00]} g6 {[%emt 0:00:00]} 3. g3 {[%emt 0:00:00]} Bg7 {[%emt 0:00:02]} 4. Bg2 {[%emt 0:00:00]} Nc6 {[%emt 0:00:18]} 5. d3 {[%emt 0:00:01]} Nf6 {[%emt 0:00:11]} 6. f4 {[%emt 0:00:06]} d6 {[%emt 0:00:22]} 7. Nf3 {[%emt 0:00:07]} O-O {[%emt 0:00:14]} 8. O-O {[%emt 0:00:05]} Rb8 {[%emt 0:00:19]} 9. a4 {[%emt 0:00:14]} a6 {[%emt 0:00:13]} 10. h3 {[%emt 0:00:40]} b5 {[%emt 0:00:35]} 11. axb5 {[%emt 0:00:17]} axb5 {[%emt 0:00:09]} 12. g4 {[%emt 0:00:12]} b4 {[%emt 0:01:02]} 13. Ne2 {[%emt 0:00:06]} Nd7 {[%emt 0:00:55]} 14. Kh1 {[%emt 0:02:22]} Bb7 {[%emt 0:02:47]} 15. Re1 {[%emt 0:18:13]} Ra8 {[%emt 0:05:38]} 16. Rxa8 {[%emt 0:01:12]} Qxa8 {[%emt 0:00:23]} 17. c3 {[%emt 0:13:22]} Qa2 {[%emt 0:14:21]} 18. d4 {[%emt 0:01:51]} bxc3 {[%emt 0:02:03]} 19. bxc3 {[%emt 0:06:54]} Qa7 {[%emt 0:09:11]} 20. Bb2 {[%emt 0:03:45]} Na5 {[%emt 0:10:37]} 21. d5 {[%emt 0:09:43]} Nc4 22. Qb3 {[%emt 0:03:04]} Nxb2 {[%emt 0:04:38]} 23. Qxb2 {[%emt 0:00:06]} Ra8 {[%emt 0:02:18]} 24. Bf1 {[%emt 0:03:15]} Ba6 {[%emt 0:03:47]} 25. Ra1 {[%emt 0:04:05]} Qb7 {[%emt 0:02:12]} 26. Qxb7 {[%emt 0:02:39]} Bxb7 {[%emt 0:00:10]} 27. Rxa8+ {[%emt 0:00:05]} Bxa8 {[%emt 0:00:56]} 28. c4 {[%emt 0:01:45]} Bb7 {[%emt 0:02:34]} 29. Nd2 {[%emt 0:01:18]} Bb2 {[%emt 0:02:08]} 30. Ng1 {[%emt 0:00:51]} Bd4 {[%emt 0:02:07]} 31. Ngf3 {[%emt 0:00:30]} Be3 {[%emt 0:01:52]} 1/2-1/2

[Event "EYCC Girls-U10 2019"]
[Site "Bratislava"]
[Date "2019.08.09"]
[Round "8.17"]
[White "Ismayilova, Khanim"]
[Black "Kuznecova, Marija"]
[Result "1-0"]
[ECO "A41"]
[WhiteElo "1265"]
[BlackElo "1375"]
[Annotator "NA"]
[PlyCount "85"]
[EventDate "2019.08.02"]
[EventType "swiss"]
[EventCountry "SVK"]
[SourceTitle "playchess.com"]
[Source "ChessBase"]
[SourceQuality "1"]
[TimeControl "40/5400+30:1800+30"]

1. d4 {[%emt 0:00:00]} d6 {[%emt 0:00:00]} 2. Bf4 {[%emt 0:00:30]} Nd7 {[%emt 0:00:30]} 3. Nf3 {[%emt 0:00:15]} Ngf6 {[%emt 0:00:10]} 4. e3 {[%emt 0:00:03]} Nh5 {[%emt 0:00:23]} 5. Bg5 {[%emt 0:00:08]} h6 6. Bh4 g5 {[%emt 0:00:23]} 7. Nfd2 {[%emt 0:00:07]} Nhf6 {[%emt 0:02:04]} 8. Bg3 {[%emt 0:00:58]} Bg7 {[%emt 0:03:08]} 9. c4 {[%emt 0:02:33]} e5 {[%emt 0:03:46]} 10. Nc3 {[%emt 0:07:08]} a6 {[%emt 0:10:23]} 11. Bd3 {[%emt 0:09:35]} Qe7 {[%emt 0:02:12]} 12. Qe2 {[%emt 0:10:10]} Nf8 {[%emt 0:14:06]} 13. d5 {[%emt 0:09:38]} Ng6 {[%emt 0:09:21]} 14. e4 {[%emt 0:05:06]} h5 {[%emt 0:13:22]} 15. h3 {[%emt 0:05:11]} h4 {[%emt 0:02:20]} 16. Bh2 {[%emt 0:00:06]} g4 {[%emt 0:01:05]} 17. hxg4 {[%emt 0:08:15]} Bxg4 {[%emt 0:00:53]} 18. f3 Bh5 {[%emt 0:03:09]} 19. O-O-O {[%emt 0:07:38]} Bh6 {[%emt 0:02:30]} 20. Kb1 {[%emt 0:03:25]} Nd7 21. g4 hxg3 {[%emt 0:01:44]} 22. Bxg3 {[%emt 0:08:58]} Nf4 {[%emt 0:02:17]} 23. Bh4 {[%emt 0:07:13]} f6 24. Qf1 Nxd3 {[%emt 0:04:30]} 25. Qxd3 {[%emt 0:00:34]} Nc5 {[%emt 0:00:47]} 26. Qe2 {[%emt 0:01:15]} Bf4 {[%emt 0:01:52]} 27. Nf1 {[%emt 0:02:32]} O-O-O {[%emt 0:02:22]} 28. Ne3 {[%emt 0:01:29]} Rdg8 {[%emt 0:02:54]} 29. Rdg1 {[%emt 0:01:52]} Rxg1+ {[%emt 0:00:50]} 30. Rxg1 {[%emt 0:00:01]} Bxf3 {[%emt 0:01:23]} 31. Qxf3 {[%emt 0:00:03]} Rxh4 {[%emt 0:00:19]} 32. Nf5 {[%emt 0:00:05]} Qh7 {[%emt 0:01:02]} 33. Nxh4 {[%emt 0:00:07]} Qxh4 {[%emt 0:00:11]} 34. Qg2 Bg5 {[%emt 0:00:18]} 35. Rh1 {[%emt 0:01:25]} Qf4 {[%emt 0:01:42]} 36. Rh8+ {[%emt 0:01:30]} Kd7 {[%emt 0:00:10]} 37. Qh3+ {[%emt 0:00:08]} f5 {[%emt 0:00:36]} 38. Qh7+ {[%emt 0:01:15]} Be7 {[%emt 0:00:17]} 39. Qxf5+ {[%emt 0:00:55]} Qxf5 {[%emt 0:00:06]} 40. exf5 {[%emt 0:00:03]} Nd3 {[%emt 0:01:41]} 41. Ne4 {[%emt 0:30:37]} Nf4 {[%emt 0:30:21]} 42. f6 {[%emt 0:00:00]} Bd8 {[%emt 0:00:00]} 43. f7 {[%emt 0:00:00]} 1-0

[Event "EYCC Girls-U10 2019"]
[Site "Bratislava"]
[Date "2019.08.09"]
[Round "8.18"]
[White "Guzun, Lavinia"]
[Black "Petrenko, Maryna"]
[Result "1-0"]
[ECO "B13"]
[WhiteElo "1205"]
[BlackElo "1335"]
[Annotator "NA"]
[PlyCount "109"]
[EventDate "2019.08.02"]
[EventType "swiss"]
[EventCountry "SVK"]
[SourceTitle "playchess.com"]
[Source "ChessBase"]
[SourceQuality "1"]
[TimeControl "40/5400+30:1800+30"]

1. e4 {[%emt 0:00:00]} c6 {[%emt 0:00:00]} 2. d4 {[%emt 0:00:00]} d5 {[%emt 0:00:04]} 3. exd5 {[%emt 0:00:00]} cxd5 {[%emt 0:00:06]} 4. c4 {[%emt 0:00:00]} Nf6 {[%emt 0:00:59]} 5. Nc3 {[%emt 0:00:11]} Bf5 {[%emt 0:01:49]} 6. Qb3 {[%emt 0:01:58]} Qb6 {[%emt 0:26:19]} 7. Qb5+ {[%emt 0:01:22]} Qxb5 {[%emt 0:01:11]} 8. Nxb5 {[%emt 0:00:07]} Na6 {[%emt 0:00:09]} 9. a3 {[%emt 0:04:07]} e6 {[%emt 0:08:03]} 10. Nf3 {[%emt 0:02:55]} Be7 {[%emt 0:03:10]} 11. Bg5 {[%emt 0:01:23]} Rd8 {[%emt 0:02:57]} 12. Nxa7 {[%emt 0:02:57]} Nc7 {[%emt 0:06:55]} 13. c5 {[%emt 0:02:20]} O-O {[%emt 0:04:08]} 14. Ne5 {[%emt 0:01:31]} Bc2 {[%emt 0:08:48]} 15. c6 {[%emt 0:01:47]} bxc6 {[%emt 0:04:42]} 16. Naxc6 {[%emt 0:00:25]} Rde8 {[%emt 0:00:10]} 17. Bxf6 {[%emt 0:01:51]} Bxf6 {[%emt 0:00:16]} 18. Nd7 {[%emt 0:00:12]} Ba4 {[%emt 0:00:09]} 19. Rc1 {[%emt 0:02:05]} Na8 {[%emt 0:06:06]} 20. Nxf8 {[%emt 0:01:00]} Kxf8 {[%emt 0:00:21]} 21. Ne5 {[%emt 0:03:36]} Nb6 {[%emt 0:02:45]} 22. Bd3 {[%emt 0:01:04]} g6 {[%emt 0:03:01]} 23. O-O {[%emt 0:00:36]} Kg7 {[%emt 0:01:46]} 24. Bc2 {[%emt 0:01:17]} Bxe5 {[%emt 0:06:20]} 25. dxe5 {[%emt 0:02:56]} Bb5 {[%emt 0:00:07]} 26. Rfe1 {[%emt 0:00:59]} Nc4 {[%emt 0:00:31]} 27. a4 {[%emt 0:02:06]} Bd7 {[%emt 0:00:31]} 28. b3 {[%emt 0:00:27]} Na5 {[%emt 0:01:19]} 29. b4 {[%emt 0:02:55]} Nc4 {[%emt 0:00:50]} 30. Bb3 {[%emt 0:01:16]} Nb2 {[%emt 0:00:22]} 31. Ra1 {[%emt 0:03:08]} Nd3 {[%emt 0:00:18]} 32. Re2 {[%emt 0:01:06]} Nxb4 {[%emt 0:00:19]} 33. a5 {[%emt 0:00:36]} Bb5 {[%emt 0:01:10]} 34. Ba4 {[%emt 0:01:08]} Bxa4 {[%emt 0:01:04]} 35. Rxa4 {[%emt 0:00:02]} Na6 {[%emt 0:00:19]} 36. Rc2 {[%emt 0:01:25]} f6 {[%emt 0:01:38]} 37. f4 {[%emt 0:01:29]} fxe5 {[%emt 0:00:23]} 38. fxe5 {[%emt 0:00:09]} Ra8 {[%emt 0:00:38]} 39. Rc6 {[%emt 0:01:30]} Kf7 {[%emt 0:00:04]} 40. Kf2 {[%emt 0:00:00]} Ke7 {[%emt 0:00:00]} 41. Ke3 {[%emt 0:00:19]} Kd7 {[%emt 0:00:21]} 42. Rb6 {[%emt 0:00:06]} Nc5 {[%emt 0:01:01]} 43. Ra2 {[%emt 0:01:33]} Kc7 {[%emt 0:01:59]} 44. Kd4 {[%emt 0:00:29]} Nb7 {[%emt 0:00:21]} 45. Rxe6 {[%emt 0:01:41]} Nxa5 {[%emt 0:00:50]} 46. Kxd5 {[%emt 0:00:36]} Kd7 {[%emt 0:00:59]} 47. Rd6+ {[%emt 0:00:19]} Ke7 {[%emt 0:00:37]} 48. e6 {[%emt 0:00:18]} Ke8 {[%emt 0:03:35]} 49. Rb6 {[%emt 0:02:51]} Rd8+ {[%emt 0:01:00]} 50. Kc5 {[%emt 0:00:15]} Rc8+ {[%emt 0:00:16]} 51. Kb5 {[%emt 0:02:14]} Nb3 {[%emt 0:00:18]} 52. Kb4 {[%emt 0:01:09]} Nd4 {[%emt 0:00:37]} 53. Rd6 {[%emt 0:01:39]} Nf5 {[%emt 0:01:03]} 54. Rd7 {[%emt 0:00:29]} Rc6 {[%emt 0:01:28]} 55. Ra8+ {[%emt 0:00:40]} 1-0